lending/lending_fUSD_20251018
["ID","MTS","AMOUNT","RATE_DAILY","PERIOD"]
[391770998,1760793044459,-500.0,0.00029999,2]
[391770999,1760793044475,-500.0,0.00029999,2]
[391771000,1760793044487,-506.66296033,0.00029999,2]
[391771001,1760793044497,-1196.0,0.0003,5]
[391771002,1760793044508,-1032650.4366699,0.0003,4]
[391771008,1760793045928,-1600.26,0.0003,4]
[391771009,1760793045943,-21127.26453722,0.0003,4]
[391771010,1760793046145,-4420.78677654,0.0003,4]
[391771013,1760793366177,500.0,0.0002046,120]
[391771014,1760793366259,500.0,0.00023744,120]
[391771015,1760793366370,500.0,0.00026998,120]
[391771016,1760793366499,500.0,0.00026998,120]
[391771017,1760793366614,500.0,0.00026998,120]
[391771022,1760793403295,-154.7846,0.000186,2]
[391771023,1760793403316,-66.22525748,0.00019995,2]
[391771024,1760793406878,-197.12372833,0.00019995,2]
[391771025,1760793411896,-300.0,0.00019995,2]
[391771026,1760793413347,-166.66,0.00019995,2]
[391771027,1760793415917,-254.94928461,0.00019995,2]
[391771028,1760793422798,500.0,0.00021995,120]
[391771029,1760793422904,500.0,0.00024442,120]
[391771030,1760793423118,500.0,0.00027188,120]
[391771031,1760793423164,500.0,0.00027188,120]
[391771032,1760793423260,500.0,0.00027188,120]
[391771033,1760793432679,-245.05071539,0.00019995,2]
[391771034,1760793435923,-157.91309406,0.00019995,2]
[391771035,1760793439975,-247.61503893,0.00019995,2]
[391771036,1760793443829,-325.28575186,0.00019995,2]
[391771037,1760793445345,-536.81190285,0.00019995,2]
[391771038,1760793447338,-307.20622567,0.00019995,2]
[391771039,1760793452344,-180.73240811,0.00019994,2]
[391771040,1760793454402,-277.35679052,0.00019994,2]
[391771041,1760793456997,-153.58810001,0.00019994,2]
[391771042,1760793459931,-75.32270136,0.00019994,2]
[391771043,1760793459955,-140.40746001,0.00019995,2]
[391771044,1760793462078,-412.90087671,0.00019995,2]
[391771045,1760793477671,-326.30479761,0.00019995,2]
[391771046,1760793479283,-265.68752685,0.00019995,2]
[391771047,1760793483262,500.0,0.00021995,120]
[391771048,1760793483379,500.0,0.00024492,120]
[391771049,1760793484772,-383.95034293,0.00019995,2]
[391771050,1760793487997,-430.17219954,0.00019995,2]
[391771051,1760793491756,-471.65272306,0.00019995,2]
[391771052,1760793495496,-300.0,0.00019895,2]
[391771053,1760793502007,-351.69712708,0.00019895,2]
[391771054,1760793523203,-22.12223292,0.00019895,2]
[391771055,1760793523226,-338.53395908,0.00019995,2]
[391771056,1760793525316,-197.85124363,0.00019995,2]
[391771057,1760793527815,-208.79,0.00019995,2]
[391771058,1760793532363,-480.0,0.00019995,2]
[391771059,1760793536067,-235.06599117,0.00019995,2]
[391771060,1760793553239,-219.30693218,0.00019995,2]
[391771061,1760793556619,-447.38477188,0.00019995,2]
[391771062,1760793560088,-298.91765228,0.00019995,2]
[391771063,1760793564292,-287.36383584,0.00019995,2]
[391771064,1760793565808,-195.00907424,0.00019995,2]
[391771065,1760793567234,-161.13120818,0.00019995,2]
[391771066,1760793572905,-310.22959107,0.00019995,2]
[391771067,1760793575666,-290.12902328,0.00019995,2]
[391771068,1760793580814,-249.33647055,0.00019995,2]
[391771069,1760793582184,-164.4,0.00019995,2]
[391771070,1760793589272,-204.5,0.00019995,2]
[391771071,1760793591284,-206.12852006,0.00019995,2]
[391771072,1760793596046,-220.90292361,0.00019995,2]
[391771073,1760793597478,-296.5598521,0.00019995,2]
[391771074,1760793598955,-166.66,0.00019995,2]
[391771075,1760793600441,-301.67714213,0.00019995,2]
[391771076,1760793603906,-224.0474455,0.00019994,2]
[391771077,1760793605861,-300.0,0.00019994,2]
[391771078,1760793608199,-250.66650259,0.00019994,2]
[391771079,1760793612203,-238.96937551,0.00019994,2]
[391771080,1760793614273,-186.3166764,0.00019994,2]
[391771081,1760793614295,-103.98720792,0.00019995,2]
[391771082,1760793616296,-300.76667589,0.00019995,2]
[391771083,1760793620335,-164.0,0.00019995,2]
[391771084,1760793623516,-256.97513188,0.00019995,2]
[391771085,1760793642655,-390.40681569,0.0001999,2]
[391771086,1760793644415,-158.69671284,0.0001999,2]
[391771087,1760793646500,-294.41032499,0.0001999,2]
[391771088,1760793647921,-399.37,0.0001999,2]
[391771089,1760793653055,-167.60418897,0.0001999,2]
[391771090,1760793656622,-215.4245165,0.0001999,2]
[391771091,1760793673672,-218.51371194,0.00019989,2]
[391771092,1760793678144,-193.49040346,0.00019989,2]
[391771093,1760793684146,-266.226302,0.00019989,2]
[391771094,1760793684169,-14.02019115,0.0001999,2]
[391771095,1760793685605,-306.46578607,0.0001999,2]
[391771096,1760793687150,-227.50934178,0.0001999,2]
[391771097,1760793692157,-180.33112792,0.0001999,2]
[391771098,1760793693620,-283.91327745,0.0001999,2]
[391771099,1760793695158,-277.57834291,0.0001999,2]
[391771100,1760793700134,-311.05,0.0001999,2]
[391771101,1760793701881,-345.0,0.0001999,2]
[391771102,1760793717644,-231.56564716,0.0001999,2]
[391771103,1760793720279,-288.79120476,0.0001999,2]
[391771104,1760793724157,-285.96282001,0.0001999,2]
[391771105,1760793726881,-183.67138701,0.0001999,2]
[391771106,1760793731906,-232.04779349,0.0001999,2]
[391771107,1760793731929,-67.95220651,0.00019995,2]
[391771108,1760793747635,-300.0,0.00019995,2]
[391771109,1760793749590,-344.03715681,0.00019994,2]
[391771110,1760793751726,-300.0,0.00019994,2]
[391771111,1760793756089,-178.56978606,0.00019994,2]
[391771112,1760793757497,-300.0,0.00019994,2]
[391771113,1760793759588,-77.39305713,0.00019994,2]
[391771114,1760793759616,-545.78975541,0.00019995,2]
[391771115,1760793766419,-303.9168245,0.00019995,2]
[391771116,1760793772247,-268.35715914,0.00019995,2]
[391771117,1760793774493,-440.59301344,0.00019995,2]
[391771118,1760793792746,-207.23879318,0.00019994,2]
[391771119,1760793796366,-92.76120682,0.00019994,2]
[391771120,1760793796570,-165.44852189,0.00019995,2]
[391771121,1760793797928,-221.75770419,0.00019995,2]
[391771122,1760793800648,-204.95947662,0.00019995,2]
[391771123,1760793803797,-205.48798767,0.00019995,2]
[391771124,1760793806735,-184.95604077,0.00019995,2]
[391771125,1760793822663,-171.46007785,0.00019995,2]
[391771126,1760793824313,-203.5260081,0.00019995,2]
[391771127,1760793829079,-265.50166498,0.00019995,2]
[391771128,1760793832205,-432.18480056,0.00019995,2]
[391771129,1760793835887,-232.39775371,0.00019995,2]
[391771130,1760793853754,-164.39374266,0.00019995,2]
[391771131,1760793855771,-254.29385397,0.00019995,2]
[391771132,1760793859951,-226.05562376,0.00019995,2]
[391771133,1760793861853,-382.71407976,0.00019995,2]
[391771134,1760793864405,-280.51535638,0.00019995,2]
[391771135,1760793883222,-291.59,0.00019995,2]
[391771136,1760793885309,-683.4498109,0.00019995,2]
[391771137,1760793886753,-420.68075296,0.00019995,2]
[391771138,1760793888298,-250.0,0.00019995,2]
[391771139,1760793892243,-270.82392731,0.00019995,2]
[391771140,1760793893699,-262.83656661,0.00019995,2]
[391771141,1760793896747,-376.39664348,0.00019995,2]
[391771142,1760793912908,-195.06813115,0.00015,2]
[391771143,1760793916575,-190.21738323,0.00015,2]
[391771144,1760793918192,-451.23899798,0.00015,2]
[391771145,1760793924304,-193.70625838,0.00015,2]
[391771146,1760793926485,-442.58636448,0.00015,2]
[391771147,1760793942681,-304.43393434,0.00015,2]
[391771148,1760793944347,-330.48340147,0.00015,2]
[391771149,1760793948737,-228.36034156,0.00015,2]
[391771150,1760793951808,-224.44009699,0.00015,2]
[391771151,1760793956558,-298.10736603,0.00015,2]
[391771152,1760793973172,-218.61143519,0.00015,2]
[391771153,1760793974637,-158.20263632,0.00015,2]
[391771154,1760793976006,-192.79377433,0.00015,2]
[391771155,1760793980904,-250.0,0.00015,2]
[391771158,1760794183020,-200.42553384,0.00013282,2]
[391771159,1760794184513,-128.41446616,0.00013282,2]
[391771160,1760794184537,-104.21551274,0.00013981,2]
[391771170,1760794231987,-224.62448726,0.00013981,2]
[391771171,1760794231997,-266.41156244,0.0001468,2]
[391771172,1760794232009,-62.42843756,0.0001468,2]
[391771173,1760794232020,-280.05471328,0.00014999,2]
[391771174,1760794232033,-19.94528672,0.00014999,2]
[391771175,1760794232043,-1200.0,0.00014999,2]
[391771176,1760794232052,-69.19774941,0.00014999,2]
[391771177,1760794232064,-230.80225059,0.00014999,2]
[391771178,1760794232073,-150.0,0.00014999,2]
[391771179,1760794232083,-629.07269345,0.00015,2]
[391771180,1760794232094,-1740.94816339,0.00015,2]
[391771181,1760794232106,-440.56810984,0.00015,2]
[391771182,1760794232118,-1255.96697889,0.00015,2]
[391771183,1760794232130,-510.0,0.00015,2]
[391771184,1760794232142,-606.48713533,0.00015,2]
[391771185,1760794232153,-3669.27502503,0.00015,2]
[391771186,1760794232173,-572.77289877,0.00015,2]
[391771187,1760794232184,-70438.99037865,0.00015,2]
[391771188,1760794232195,-328.84,0.00015379,2]
[391771189,1760794232204,-884.89288633,0.00016,2]
[391771190,1760794232214,-328.84,0.00016078,2]
[391771191,1760794232224,-200.0,0.0001634,2]
[391771192,1760794232234,-480.0,0.00016499,2]
[391771193,1760794232247,-355.69052518,0.000166,2]
[391771194,1760794232256,-328.84,0.00016777,2]
[391771195,1760794232266,-1581.35370011,0.00017,2]
[391771196,1760794232275,-193.70625838,0.000174,2]
[391771197,1760794232285,-328.84,0.00017476,2]
[391771198,1760794232295,-5604.95012019,0.000175,2]
[391771199,1760794232304,-328.84,0.00018175,2]
[391771200,1760794232314,-328.84,0.00018874,2]
[391771201,1760794232323,-328.84,0.00019573,2]
[391771202,1760794232333,-225.06053739,0.00019895,2]
[391771203,1760794232343,-200.0,0.00019983,2]
[391771204,1760794232352,-205.73527784,0.00019983,2]
[391771205,1760794232361,-151.0,0.00019983,2]
[391771206,1760794232371,-151.0,0.00019983,2]
[391771207,1760794232381,-151.0,0.00019983,2]
[391771208,1760794232391,-151.0,0.00019983,2]
[391771209,1760794232400,-151.0,0.00019983,2]
[391771210,1760794232409,-151.0,0.00019983,2]
[391771211,1760794232419,-151.0,0.00019983,2]
[391771212,1760794232428,-151.0,0.00019983,2]
[391771213,1760794232438,-151.0,0.00019983,2]
[391771214,1760794232448,-151.0,0.00019983,2]
[391771215,1760794232458,-151.0,0.00019983,2]
[391771216,1760794232467,-151.0,0.00019983,2]
[391771217,1760794232476,-151.0,0.00019983,2]
[391771218,1760794232486,-500.0,0.00019983,2]
[391771219,1760794232495,-151.0,0.00019983,2]
[391771220,1760794232504,-500.0,0.00019983,2]
[391771221,1760794232513,-151.0,0.00019983,2]
[391771222,1760794232523,-151.0,0.00019983,2]
[391771225,1760794232532,-500.0,0.00019983,2]
[391771227,1760794232542,-151.0,0.00019983,2]
[391771229,1760794232551,-151.0,0.00019983,2]
[391771232,1760794232561,-500.0,0.00019983,2]
[391771235,1760794232571,-151.0,0.00019983,2]
[391771237,1760794232581,-151.0,0.00019983,2]
[391771239,1760794232591,-160.15730937,0.00019983,2]
[391771241,1760794232600,-151.0,0.00019983,2]
[391771242,1760794232610,-151.0,0.00019983,2]
[391771243,1760794232619,-151.0,0.00019983,2]
[391771244,1760794232631,-151.0,0.00019983,2]
[391771245,1760794232641,-151.0,0.00019983,2]
[391771246,1760794232650,-151.0,0.00019983,2]
[391771247,1760794232660,-151.0,0.00019983,2]
[391771248,1760794232670,-151.0,0.00019983,2]
[391771249,1760794232680,-151.0,0.00019983,2]
[391771250,1760794232689,-151.0,0.00019983,2]
[391771251,1760794232699,-151.0,0.00019983,2]
[391771252,1760794232708,-151.0,0.00019983,2]
[391771253,1760794232718,-151.0,0.00019983,2]
[391771254,1760794232727,-151.0,0.00019983,2]
[391771255,1760794232736,-151.0,0.00019983,2]
[391771256,1760794232746,-151.0,0.00019983,2]
[391771257,1760794232756,-151.0,0.00019983,2]
[391771258,1760794232765,-151.0,0.00019983,2]
[391771259,1760794232775,-151.0,0.00019983,2]
[391771260,1760794232785,-151.0,0.00019983,2]
[391771261,1760794232794,-200.0,0.00019983,2]
[391771262,1760794232804,-151.0,0.00019983,2]
[391771263,1760794232814,-151.0,0.00019983,2]
[391771264,1760794232824,-151.0,0.00019983,2]
[391771265,1760794232833,-151.0,0.00019983,2]
[391771266,1760794232843,-151.0,0.00019983,2]
[391771267,1760794232854,-151.0,0.00019983,2]
[391771268,1760794232864,-151.0,0.00019983,2]
[391771269,1760794232873,-151.0,0.00019983,2]
[391771270,1760794232883,-151.0,0.00019983,2]
[391771271,1760794232892,-151.0,0.00019983,2]
[391771272,1760794232903,-151.0,0.00019983,2]
[391771273,1760794232912,-151.0,0.00019983,2]
[391771274,1760794232922,-151.0,0.00019983,2]
[391771275,1760794232933,-151.0,0.00019983,2]
[391771276,1760794232942,-225.816144,0.00019983,2]
[391771277,1760794232951,-5150.83139321,0.00019995,2]
[391771278,1760794232961,-500.0,0.0002,2]
[391771279,1760794232970,-500.0,0.0002,2]
[391771280,1760794232980,-500.0,0.0002,2]
[391771281,1760794232989,-328.84,0.00020272,2]
[391771282,1760794232999,-328.84,0.00020971,2]
[391771283,1760794233009,-250.0,0.00020999,2]
[391771284,1760794233019,-328.84,0.0002167,2]
[391771285,1760794233029,-1681.87108889,0.00021995,2]
[391771286,1760794233041,-328.84,0.00022369,2]
[391771287,1760794233051,-4793.8194787,0.00022597,2]
[391771288,1760794233060,-678.2304174,0.00022608,2]
[391771289,1760794233070,-328.84,0.00023068,2]
[391771290,1760794233080,-1460.55709909,0.00023223,2]
[391771291,1760794233090,-166.66,0.0002331,30]
[391771292,1760794233100,-328.84,0.00023767,2]
[391771293,1760794233109,-166.66,0.00023801,30]
[391771294,1760794233119,-9999.99,0.00024174,2]
[391771295,1760794233128,-166.66,0.00024291,30]
[391771296,1760794233139,-328.84,0.00024466,2]
[391771297,1760794233149,-200.0,0.00024492,2]
[391771298,1760794233159,-559.58,0.00024514,2]
[391771299,1760794233168,-166.66,0.00024782,30]
[391771300,1760794233178,-328.84,0.00025165,2]
[391771301,1760794233187,-4793.8194787,0.00025204,2]
[391771302,1760794233197,-678.2304174,0.00025228,2]
[391771303,1760794233217,-166.66,0.00025273,30]
[391771304,1760794233227,-166.66,0.00025763,30]
[391771305,1760794233236,-328.84,0.00025864,2]
[391771306,1760794233246,-345.51780587,0.000265,2]
[391771307,1760794233256,-328.84,0.00026563,2]
[391771308,1760794233266,-1000.0,0.000266,2]
[391771309,1760794233275,-1000.0,0.000266,2]
[391771310,1760794233285,-1000.0,0.000266,2]
[391771311,1760794233295,-1000.0,0.000266,2]
[391771312,1760794233305,-2335.17697653,0.000266,2]
[391771313,1760794233316,-1000.0,0.000266,2]
[391771314,1760794233325,-1000.0,0.000266,2]
[391771315,1760794233335,-1000.0,0.000266,2]
[391771316,1760794233347,-1000.0,0.000266,2]
[391771317,1760794233357,-1000.0,0.000266,2]
[391771318,1760794233367,-1000.0,0.000266,2]
[391771319,1760794233376,-1000.0,0.000266,2]
[391771320,1760794233386,-925.88808416,0.000266,2]
[391771321,1760794233396,-277.35679052,0.000266,2]
[391771322,1760794233405,-250.0,0.000266,2]
[391771323,1760794233415,-250.0,0.000266,2]
[391771324,1760794233424,-250.0,0.000266,2]
[391771325,1760794233434,-250.0,0.000266,2]
[391771326,1760794233443,-250.0,0.000266,2]
[391771327,1760794233453,-250.0,0.000266,2]
[391771328,1760794233463,-250.0,0.000266,2]
[391771329,1760794233472,-283.01585621,0.000266,2]
[391771330,1760794233482,-159.563,0.00026795,14]
[391771331,1760794233491,-1048.54,0.00026795,14]
[391771332,1760794233501,-151.0,0.00026997,7]
[391771333,1760794233510,-17012.0708409,0.00027,2]
[391771334,1760794233519,-496.41214991,0.00027125,2]
[391771335,1760794233529,-184.47,0.0002775,2]
[391771336,1760794233539,-4793.8194787,0.00027811,2]
[391771337,1760794233548,-678.2304174,0.00027847,2]
[391771338,1760794233558,-300.0,0.00027907,2]
[391771339,1760794233571,-207.25004481,0.00027969,2]
[391771340,1760794233581,-250.0,0.00028101,2]
[391771341,1760794233591,-517.92,0.00028263,2]
[391771342,1760794233600,-266.85842414,0.00028264,2]
[391771343,1760794233610,-1000.0,0.00028307,2]
[391771344,1760794233619,-176.7,0.00029028,2]
[391771345,1760794233629,-727.51,0.00029033,120]
[391771346,1760794233639,-2000.0,0.00029042,2]
[391771347,1760794233649,-1500.0,0.00029044,120]
[391771348,1760794233659,-184.47,0.00029137,2]
[391771349,1760794233669,-300.0,0.00029277,2]
[391771350,1760794233679,-150.0,0.00029293,7]
[391771351,1760794233689,-150.0,0.00029293,7]
[391771352,1760794233699,-150.0,0.00029293,7]
[391771353,1760794233709,-283.18139762,0.00029293,7]
[391771354,1760794233719,-244.62036252,0.00029293,7]
[391771355,1760794233728,-150.0,0.00029293,7]
[391771356,1760794233738,-176.09,0.00029315,2]
[391771357,1760794233748,-176.09,0.00029315,2]
[391771358,1760794233757,-739.2702097,0.00029342,2]
[391771359,1760794233770,-500.0,0.0002936,2]
[391771360,1760794233780,-1093.6,0.00029479,2]
[391771361,1760794233790,-176.09,0.000295,2]
[391771362,1760794233799,-739.2702098,0.00029748,2]
[391771363,1760794233810,-200.0,0.00029759,2]
[391771364,1760794233820,-300.0,0.000298,10]
[391771365,1760794233829,-183.36974806,0.000298,2]
[391771366,1760794234050,-574.63025194,0.000298,2]
[391771367,1760794234060,-4692.74944286,0.00029898,2]
[391771368,1760794234069,-204.08902929,0.00029898,2]
[391771369,1760794234079,-175.68676026,0.00029898,15]
[391771370,1760794234093,-300.46,0.000299,2]
[391771371,1760794234103,-600.0,0.000299,10]
[391771372,1760794234113,-500.0,0.00029935,2]
[391771373,1760794234123,-500.0,0.00029935,2]
[391771374,1760794234132,-474.66254457,0.00029935,2]
[391771375,1760794234142,-500.0,0.00029935,2]
[391771376,1760794234152,-500.0,0.00029935,2]
[391771377,1760794234161,-500.0,0.00029935,2]
[391771378,1760794234171,-470.61450866,0.00029935,2]
[391771379,1760794234180,-500.0,0.00029935,2]
[391771380,1760794234190,-500.0,0.00029935,2]
[391771381,1760794234200,-500.0,0.00029935,2]
[391771382,1760794234210,-500.0,0.00029935,2]
[391771383,1760794234220,-500.0,0.00029935,2]
[391771384,1760794234229,-500.0,0.00029935,2]
[391771385,1760794234239,-500.0,0.00029935,2]
[391771386,1760794234248,-34246.1028,0.00029936,2]
[391771387,1760794234258,-932.75284,0.00029955,2]
[391771388,1760794234267,-500.0,0.00029973,5]
[391771389,1760794234276,-500.53033081,0.00029973,5]
[391771390,1760794234286,-200.0,0.00029973,5]
[391771391,1760794234300,-52497.26316953,0.00029998,2]
[391771392,1760794234312,-434.26595563,0.00029998,2]
[391771577,1760794240093,-4481.92895147,0.00029998,2]
[391771590,1760794240209,-1131.94919828,0.00029998,2]
[391771597,1760794240266,-6840.39792833,0.00029998,2]
[391771599,1760794240278,-2934.39711703,0.00029998,2]
[391771602,1760794240289,-2481.48571131,0.00029998,2]
[391771604,1760794240300,-8131.22788333,0.00029998,2]
[391771606,1760794240312,-84515.04634829,0.00029998,2]
[391771608,1760794240321,-19161.55951393,0.00029998,2]
[391771610,1760794240331,-500.0,0.00029999,2]
[391771612,1760794240342,-35639.13832368,0.0003,4]
[391771614,1760794240351,-300.0,0.0003,120]
[391771616,1760794240360,-30000.0,0.0003,7]
[391771618,1760794240370,-932.75285,0.0003001,2]
[391771620,1760794240379,-500.0,0.0003002,2]
[391771622,1760794240387,-500.0,0.0003002,2]
[391771624,1760794240396,-300.0,0.00030027,2]
[391771626,1760794240405,-150.0,0.00030107,7]
[391771628,1760794240414,-30044.0985829,0.00030126,3]
[391771630,1760794240424,-151.0,0.00030126,30]
[391771632,1760794240433,-229.687808,0.00030126,30]
[391771634,1760794240442,-151.0,0.00030126,30]
[391771636,1760794240452,-193.94892372,0.00030135,2]
[391771637,1760794240461,-500.0,0.00030135,2]
[391771639,1760794240470,-203.47185307,0.00030135,2]
[391771641,1760794240480,-346.97623393,0.00030135,2]
[391771643,1760794240489,-500.0,0.00030135,2]
[391771645,1760794240498,-183.07,0.00030135,2]
[391771647,1760794240507,-500.0,0.00030135,2]
[391771649,1760794240516,-531.52725251,0.00030135,2]
[391771651,1760794240526,-167.64318668,0.00030136,2]
[391771653,1760794240541,-252.636388,0.00030136,2]
[391771768,1760794241631,-1.6e-07,0.00030136,2]
[391771820,1760794243441,-2312.55049116,0.00030136,2]
[391771821,1760794243451,-210.507306,0.00030136,2]
[391771822,1760794243462,-265.48541,0.00030136,2]
[391771823,1760794243471,-5689.719001,0.00030136,2]
[391771824,1760794243480,-285.869652,0.00030136,2]
[391771825,1760794243490,-3394.860484,0.00030136,2]
[391771826,1760794243500,-153.532707,0.00030136,2]
[391771827,1760794243509,-500.0,0.00030136,2]
[391771828,1760794243518,-500.0,0.00030136,2]
[391771829,1760794243528,-514.19800406,0.00030136,2]
[391771830,1760794243537,-505.07948252,0.00030136,2]
[391771831,1760794243547,-500.0,0.00030136,2]
[391771832,1760794243556,-503.95452267,0.00030136,2]
[391771833,1760794243565,-515.25090073,0.00030136,2]
[391771834,1760794243575,-501.37138624,0.00030136,2]
[391771835,1760794243584,-193.94444113,0.00030136,2]
[391771836,1760794243594,-526.40809086,0.00030136,2]
[391771837,1760794243603,-500.0,0.00030136,2]
[391771838,1760794243612,-506.0141444,0.00030136,2]
[391771839,1760794243622,-501.72109318,0.00030136,2]
[391771840,1760794243631,-500.0,0.00030136,2]
[391771841,1760794243640,-501.15867124,0.00030136,2]
[391771842,1760794243651,-507.6331686,0.00030136,2]
[391771843,1760794243660,-520.67904049,0.00030136,2]
[391771844,1760794243670,-500.0,0.00030136,2]
[391771845,1760794243680,-500.0,0.00030136,2]
[391771846,1760794243690,-500.0,0.00030136,2]
[391771847,1760794243699,-500.99694513,0.00030136,2]
[391771848,1760794243710,-505.61181875,0.00030136,2]
[391771849,1760794243719,-502.71899329,0.00030136,2]
[391771850,1760794243728,-500.0,0.00030136,2]
[391771851,1760794243738,-540.67812325,0.00030136,2]
[391771852,1760794243748,-500.0,0.00030136,2]
[391771853,1760794243758,-500.0,0.00030136,2]
[391771854,1760794243767,-500.0,0.00030136,2]
[391771855,1760794243779,-503.22109452,0.00030136,2]
[391771856,1760794243789,-500.0,0.00030136,2]
[391771857,1760794243798,-500.0,0.00030136,2]
[391771858,1760794243807,-515.48648492,0.00030136,2]
[391771859,1760794243817,-503.03374663,0.00030136,2]
[391771860,1760794243826,-514.35419914,0.00030136,2]
[391771861,1760794243835,-510.52585447,0.00030136,2]
[391771862,1760794243845,-510.08565134,0.00030136,2]
[391771863,1760794243858,-502.08991499,0.00030136,2]
[391771864,1760794243868,-503.08400582,0.00030136,2]
[391771865,1760794243877,-504.8125842,0.00030136,2]
[391771866,1760794243886,-400.0,0.00030136,2]
[391771867,1760794243896,-507.72052299,0.00030136,2]
[391771868,1760794243906,-500.0,0.00030136,2]
[391771869,1760794243915,-500.0,0.00030136,2]
[391771870,1760794243925,-504.71961066,0.00030136,2]
[391771871,1760794243935,-551.75426558,0.00030136,2]
[391771872,1760794243944,-500.0,0.00030136,2]
[391771873,1760794243953,-502.84088799,0.00030136,2]
[391771874,1760794243964,-510.9700572,0.00030136,2]
[391771875,1760794243973,-500.0,0.00030136,2]
[391771876,1760794243982,-502.85274617,0.00030136,2]
[391771877,1760794243991,-560.56714348,0.00030136,2]
[391771878,1760794244001,-500.0,0.00030136,2]
[391771879,1760794244011,-500.0,0.00030136,2]
[391771880,1760794244021,-500.0,0.00030136,2]
[391771881,1760794244030,-500.0,0.00030136,2]
[391771882,1760794244040,-500.0,0.00030136,2]
[391771883,1760794244049,-500.0,0.00030136,2]
[391771884,1760794244058,-275.41345484,0.00030136,2]
[391771885,1760794244068,-500.0,0.00030136,2]
[391771886,1760794244076,-508.88272117,0.00030136,2]
[391771887,1760794244086,-405.29198087,0.00030136,2]
[391771888,1760794244096,-503.05501695,0.00030136,2]
[391771889,1760794244106,-500.0,0.00030136,2]
[391771890,1760794244116,-503.1160427,0.00030136,2]
[391771891,1760794244125,-503.23895552,0.00030136,2]
[391771892,1760794244135,-500.0,0.00030136,2]
[391771893,1760794244146,-300.0,0.00030136,2]
[391771894,1760794244155,-500.0,0.00030136,2]
[391771895,1760794244165,-500.0,0.00030136,2]
[391771896,1760794244174,-503.17882563,0.00030136,2]
[391771897,1760794244183,-500.0,0.00030136,2]
[391771898,1760794244192,-500.0,0.00030136,2]
[391771899,1760794244202,-500.0,0.00030136,2]
[391771900,1760794244211,-503.35888496,0.00030136,2]
[391771901,1760794244220,-520.22302578,0.00030136,2]
[391771902,1760794244231,-500.0,0.00030136,2]
[391771903,1760794244241,-513.58689793,0.00030136,2]
[391771904,1760794244250,-506.18278594,0.00030136,2]
[391771905,1760794244259,-508.78967571,0.00030136,2]
[391771906,1760794244269,-505.29406937,0.00030136,2]
[391771907,1760794244279,-500.0,0.00030136,2]
[391771908,1760794244288,-500.0,0.00030136,2]
[391771909,1760794244297,-490.03540732,0.00030136,2]
[391771910,1760794244307,-500.0,0.00030136,2]
[391771911,1760794244317,-500.0,0.00030136,2]
[391771912,1760794244326,-502.33999908,0.00030136,2]
[391771913,1760794244335,-347.91474456,0.00030136,2]
[391771914,1760794244344,-504.63002914,0.00030136,2]
[391771915,1760794244353,-507.9066692,0.00030136,2]
[391771916,1760794244362,-507.00280992,0.00030136,2]
[391771917,1760794244371,-500.0,0.00030136,2]
[391771918,1760794244380,-510.13922976,0.00030136,2]
[391771919,1760794244389,-508.25748504,0.00030136,2]
[391771920,1760794244398,-503.44172699,0.00030136,2]
[391771921,1760794244408,-516.42039278,0.00030136,2]
[391771922,1760794244418,-500.0,0.00030136,2]
[391771923,1760794244429,-502.54122416,0.00030136,2]
[391771924,1760794244439,-500.73505172,0.00030136,2]
[391771925,1760794244448,-495.66587958,0.00030136,2]